Cogmind - Beta 12 @@@ ROGUE MODE // 2023.10.13 @ 18:30:30 Player: Figgis Result: Self-destructed Performance ------------- Evolutions (3) 1500 Regions Visited (7) 1400 Robots Destroyed (61) 305 Value Destroyed (1869) 1869 Prototype IDs (35) 700 Alien Tech Used (0) 0 Bonus (300) 300 TOTAL SCORE: 6074 Bonus ------- Aligned with FarCom 300 Cogmind --------- Core Integrity 664/700 Matter 239/300 Energy 520/520 System Corruption 7% Temperature Cool (0) Movement Treading (240) Ox1 Location -7/Lower Caves Parts ------- > --- POWER (2) -------- Heavy Deuterium Engine Cooled Deuterium Engine (fused) > --- PROPULSION (4) --- Medium Treads Medium Treads Medium Treads Medium Treads > --- UTILITY (4) ------ Huge Storage Unit Improved Melee Analysis Suite Weapon Shielding Improved Medium Armor Plating > --- WEAPON (3) ------- Blade Saw Longsword +1 Makeshift Spear > --- INVENTORY (25) --- Heavy Deuterium Engine Medium Treads Medium Treads Medium Treads Armored Huge Wheel Improved Heat Sink High-capacity Storage Unit Improved Melee Analysis Suite Core Analyzer Improved Reaction Control System Heavy Armor Plating Improved Medium Armor Plating Beamcaster Gauss Cannon Gauss Cannon Greatsword Peak State ------------ > --- POWER ------------ Heavy Ion Engine Cooled Deuterium Engine > --- PROPULSION ------- Medium Treads Medium Treads Medium Treads Medium Treads > --- UTILITY ---------- Huge Storage Unit Improved Melee Analysis Suite Weapon Shielding Improved Medium Armor Plating > --- WEAPON ----------- Blade Saw Longsword +1 Makeshift Spear > --- INVENTORY -------- Heavy Deuterium Engine Heavy Deuterium Engine Medium Treads Armored Huge Wheel Improved Heat Sink High-capacity Storage Unit High-capacity Matter Pod Improved Melee Analysis Suite Core Analyzer Reaction Control System Heavy Armor Plating Improved Medium Armor Plating Improved Spread Laser Ion Cannon Ion Cannon Firepult XL Autogun Array Greatsword [Rating: 61] Favorites ----------- Power Ion Engine Engine Ion Engine Power Core Light Nuclear Core Propulsion Light Treads Treads Light Treads Leg Aluminum Leg Wheel Compact Wheel Utility Huge Storage Unit Storage Huge Storage Unit Processor Improved Melee Analysis Suite Hackware Hacking Suite Protection Weapon Shielding Weapon Makeshift Spear Energy Gun Medium Laser Ballistic Gun Light Assault Rifle Ballistic Cannon Light Cannon Launcher Rocket Launcher Slashing Weapon Longsword +1 Piercing Weapon Makeshift Spear Build | -11 -10 -10 -10 -9 -8 -7 -7 ------- Run | Jun Mat Min Exi Min Mat Fac Low Slots Evolved 6 | . . . . . 4 2 . Power 1 | . . . . . . 1 . Propulsion 2 | . . . . . 2 . . Utility 2 | . . . . . 2 . . Weapon 1 | . . . . . . 1 . Parts Attached 51 | 8 10 2 3 2 7 18 1 Power 9 | 2 2 . . . 2 2 1 Engine 6 | 2 1 . . . 1 1 1 Core 3 | . 1 . . . 1 1 . Reactor . | . . . . . . . . Propulsion 16 | 2 2 . 1 1 3 7 . Treads 11 | . 2 . 1 1 3 4 . Leg 2 | 2 . . . . . . . Wheel 3 | . . . . . . 3 . Hover . | . . . . . . . . Flight . | . . . . . . . . Utility 11 | 1 4 . 1 . 2 3 . Device . | . . . . . . . . Storage 5 | 1 3 . 1 . . . . Processor 1 | . . . . . . 1 . Hackware 1 | . 1 . . . . . . Protection 4 | . . . . . 2 2 . Artifact . | . . . . . . . . Weapon 15 | 3 2 2 1 1 . 6 . Energy Gun 4 | 2 1 . . . . 1 . Energy Cannon . | . . . . . . . . Ballistic Gun 2 | 1 . 1 . . . . . Ballistic Cannon 2 | . 1 . . . . 1 . Launcher 1 | . . 1 . . . . . Special Weapon . | . . . . . . . . Impact Weapon . | . . . . . . . . Slashing Weapon 4 | . . . . 1 . 3 . Piercing Weapon 2 | . . . 1 . . 1 . Special Melee Weapon . | . . . . . . . . Unidentified Prototypes 4 | . . . . . 1 3 . Parts Lost 5 | . 1 1 . 1 1 1 . Power 2 | . 1 . . . 1 . . Propulsion 1 | . . . . 1 . . . Utility 1 | . . . . . . 1 . Weapon 1 | . . 1 . . . . . Highest Loss Streak 1 | . 1 1 . 1 1 1 . To Critical Strikes . | . . . . . . . . Average Slot Usage (%) 92 | . 87 99 93 100 88 85 100 Engine 10 | . 6 14 14 14 4 11 15 Core 2 | . 7 . . . 4 1 . Treads 25 | . 22 28 28 28 35 10 30 Wheel 2 | . . . . . . 13 . Storage 11 | . 14 14 14 14 9 7 7 Hackware 7 | . 3 14 14 14 2 . . Protection 5 | . . . . . 14 14 15 Energy Gun 3 | . 14 9 . . . . . Ballistic Gun 2 | . 2 4 8 . . . . Ballistic Cannon 5 | . 11 14 8 . . . . Slashing Weapon 6 | . . . . 14 9 15 15 Piercing Weapon 5 | . . . 5 14 9 7 7 Naked Turns . | . . . . . . . . Heaviest Build 122 | 13 90 30 87 90 109 122 117 Greatest Support 112 | 20 40 40 40 40 80 112 112 Greatest Overweight (x) 37 | . 4 . 2 4 1 37 1 Average Overweight (x) . | . . . . 2 1 1 1 Largest Inventory Capacity 25 | 8 25 15 25 25 25 25 25 Average Capacity 19 | 6 9 15 17 25 25 25 25 Most Carried 25 | 5 11 15 20 19 25 25 25 Average Carried 16 | 2 7 13 13 18 22 23 19 Final Capacity 25 | 8 15 15 25 25 25 25 25 Final Carried 25 | 2 11 15 20 19 25 25 19 Class Distribution -------------------- 100% | Mutant Dominant Class ---------------- Mutant | -10/Materials Mutant | -10/Mines Mutant | -10/Exiles Mutant | -9/Mines Mutant | -8/Materials Mutant | -7/Factory Mutant | -7/Lower Caves Resources | -11 -10 -10 -10 -9 -8 -7 -7 ----------- Run | Jun Mat Min Exi Min Mat Fac Low Matter Collected 881 | 204 292 108 22 26 65 164 . Remotely . | . . . . . . . . Salvage Created 2238 | . 381 161 . 24 1042 630 . Parts 131 | . 27 16 . 6 52 30 . Haulers Intercepted 3 | . . . . . 2 1 . Recyclers Shooed . | . . . . . . . . Parts Field Recycled . | . . . . . . . . Retrieved Matter . | . . . . . . . . Parts Self-Destructed 2 | . . . . . . . 2 Prevented . | . . . . . . . . Kills | -11 -10 -10 -10 -9 -8 -7 -7 ------- Run | Jun Mat Min Exi Min Mat Fac Low Combat Hostiles Destroyed 51 | . 9 12 . 2 17 11 . Melee 30 | . . . . 2 17 11 . Guns 13 | . 5 8 . . . . . Cannons 8 | . 4 4 . . . . . Classes Destroyed 9 | . 3 1 . . 4 1 . Hauler 3 | . . . . . 2 1 . Recycler 1 | . . . . . 1 . . Operator 1 | . 1 . . . . . . Watcher 5 | . 2 . . . 2 1 . Swarmer 17 | . . 12 . 2 3 . . Grunt 25 | . 9 . . . 8 8 . Sentry 5 | . . . . . 4 1 . Hunter 2 | . . . . . 2 . . Programmer 2 | . . . . . . 2 . Best Kill Streak 5 | . 2 5 . 2 5 4 . Combat Bots Only 5 | . 2 5 . 2 5 4 . Max Kills in Single Turn 2 | . 1 1 . 1 2 1 . Gunslinging . | . . . . . . . . Exploded . | . . . . . . . . Melee 2 | . . . . 1 2 1 . Uniques/NPCs Destroyed . | . . . . . . . . Combat | -11 -10 -10 -10 -9 -8 -7 -7 -------- Run | Jun Mat Min Exi Min Mat Fac Low Damage Taken 2064 | . 546 260 . 157 686 415 . Core 307 | . 134 48 . 41 48 36 . Absorbed by Shields . | . . . . . . . . Redirected to Shielding 15 | . . . . . 4 11 . Core Remaining (%) 67 | 100 . . . 10 91 . . Volleys Fired 59 | . 37 22 . . . . . Largest 2 | . 2 2 . . . . . Hottest 85 | . 85 85 . . . . . Shots Fired 111 | . 70 41 . . . . . Gun 63 | . 44 19 . . . . . Cannon 48 | . 26 22 . . . . . Launcher . | . . . . . . . . Special . | . . . . . . . . Kinetic 57 | . 33 24 . . . . . Thermal 54 | . 37 17 . . . . . Explosive . | . . . . . . . . Electromagnetic . | . . . . . . . . Robot Hit Streak 8 | . 8 4 . . . . . Robot Miss Streak 4 | . 2 4 . . . . . Penetration Max . | . . . . . . . . Secondary Targets 1 | . 1 . . . . . . Max Gunslinging Chain 1 | . 1 . . . . . . Shots Hit Robots 144 | . 42 19 . 3 51 28 1 Core Hits 69 | . 22 12 . 2 19 14 . Critical Kills . | . . . . . . . . Critical Parts Destroyed . | . . . . . . . . Critical Strikes 9 | . 4 . . . 4 1 . Burn 2 | . 2 . . . . . . Blast 2 | . 2 . . . . . . Sever 5 | . . . . . 4 1 . Melee Attacks 102 | . . . . 5 60 33 4 Impact . | . . . . . . . . Slashing 87 | . . . . 5 50 28 4 Piercing 15 | . . . . . 10 5 . Sneak Attacks 6 | . . . . . 5 1 . Combat Hostiles . | . . . . . . . . Follow-up Attacks 10 | . . . . . 5 5 . Damage Inflicted 4947 | . 654 306 . 154 2567 1213 53 Guns 504 | . 362 142 . . . . . Cannons 456 | . 292 164 . . . . . Explosions . | . . . . . . . . Melee 3987 | . . . . 154 2567 1213 53 Ramming . | . . . . . . . . Kinetic 543 | . 371 172 . . . . . Thermal 417 | . 283 134 . . . . . Explosive . | . . . . . . . . Electromagnetic . | . . . . . . . . Impact . | . . . . . . . . Slashing 3812 | . . . . 154 2441 1164 53 Piercing 175 | . . . . . 126 49 . Highest Corruption 7 | . . . . . . 7 7 Average Corruption 6 | . . . . . . 6 7 Corruption Purged . | . . . . . . . . Corruption Blocked . | . . . . . . . . Effects 20 | . . . . . . 17 3 Message Errors 4 | . . . . . . 4 . Matter Fused 6 | . . . . . . 5 1 Heat Flow Errors 4 | . . . . . . 3 1 Energy Discharges 2 | . . . . . . 1 1 Parts Fused 1 | . . . . . . 1 . Data Loss (minor) 2 | . . . . . . 2 . Data Loss (major) 1 | . . . . . . 1 . Overload Shots . | . . . . . . . . Overflow Damage 254 | . 2 2 . . 238 12 . Projectiles 4 | . 2 2 . . . . . Explosions . | . . . . . . . . Melee 250 | . . . . . 238 12 . Knockbacks 2 | . 1 1 . . . . . Impact . | . . . . . . . . Kinetic 2 | . 1 1 . . . . . Secondary . | . . . . . . . . Self-Inflicted Damage . | . . . . . . . . Shots . | . . . . . . . . Rammed . | . . . . . . . . Targets Rammed . | . . . . . . . . Kicked . | . . . . . . . . Crushed . | . . . . . . . . Highest Temperature 318 | . 318 120 . . 18 210 211 Average Temperature 81 | . 90 59 . . 12 95 113 Received Heat Transfer 777 | . 396 . . . 225 156 . Effects 1 | . 1 . . . . . . Interference 1 | . 1 . . . . . . Siege Activations . | . . . . . . . . Robots Corrupted . | . . . . . . . . Combat Hostiles . | . . . . . . . . Parts Fried . | . . . . . . . . Impact Corruptions . | . . . . . . . . Robots Melted . | . . . . . . . . Combat Hostiles . | . . . . . . . . Parts Melted 3 | . 2 1 . . . . . Heat Transferred 1332 | . 962 370 . . . . . Parts Sabotaged . | . . . . . . . . Parts Stolen 2 | . . . . . . . 2 Parts Stripped . | . . . . . . . . Power Chain Reactions . | . . . . . . . . Missiles Intercepted . | . . . . . . . . Alert | -11 -10 -10 -10 -9 -8 -7 -7 ------- Run | Jun Mat Min Exi Min Mat Fac Low Peak Influence 257 | . 121 155 . 40 257 229 . Initial 73 | . . 5 . . . 73 . Average 71 | . 53 83 . 8 104 83 . Maximum Alert Level 1 | . . . . . 1 1 . Low Security (%) 96 | 100 100 100 . 100 93 90 . Level 1 3 | . . . . . 6 9 . Level 2 . | . . . . . . . . Level 3 . | . . . . . . . . Level 4 . | . . . . . . . . Level 5 . | . . . . . . . . High Security . | . . . . . . . . Max Security . | . . . . . . . . Squads Dispatched 9 | . 2 . . . 1 6 . Investigation 3 | . 1 . . . 1 1 . Extermination 3 | . . . . . . 3 . Reinforcement 3 | . 1 . . . . 2 . Assault . | . . . . . . . . Garrison . | . . . . . . . . Intercept . | . . . . . . . . Searches Triggered . | . . . . . . . . Construction Impeded . | . . . . . . . . Haulers Reinforced 1 | . . . . . . 1 . Active Scanning Responses . | . . . . . . . . Cargo Convoy Interrupts . | . . . . . . . . Stealth | -11 -10 -10 -10 -9 -8 -7 -7 --------- Run | Jun Mat Min Exi Min Mat Fac Low Distress Signals 6 | . 1 . . . 5 . . Communications Jammed . | . . . . . . . . Distress Signals . | . . . . . . . . Times Spotted 88 | . 16 13 . 3 41 13 2 Peak Tracking Total 5 | . 4 3 . 2 5 4 2 Tactical Retreats 5 | . 1 2 . . 2 . . Traps | -11 -10 -10 -10 -9 -8 -7 -7 ------- Run | Jun Mat Min Exi Min Mat Fac Low Traps Triggered 3 | . 1 . . . 1 1 . Indirectly . | . . . . . . . . Trap Hack Attempts . | . . . . . . . . Triggered . | . . . . . . . . Disarmed . | . . . . . . . . Reprogrammed . | . . . . . . . . Reused . | . . . . . . . . Traps Extracted . | . . . . . . . . Installed . | . . . . . . . . Triggered . | . . . . . . . . Most Traps Carried 1 | . . 1 1 1 1 1 . Machines | -11 -10 -10 -10 -9 -8 -7 -7 ---------- Run | Jun Mat Min Exi Min Mat Fac Low Machines Disabled . | . . . . . . . . Max in Single Turn . | . . . . . . . . Machines Repaired . | . . . . . . . . Machines Sabotaged . | . . . . . . . . Overloaded Fab Kills . | . . . . . . . . Hacking | -11 -10 -10 -10 -9 -8 -7 -7 --------- Run | Jun Mat Min Exi Min Mat Fac Low Machines Accessed 22 | . 5 . 2 . 7 7 1 Terminals 16 | . 5 . . . 6 5 . Fabricators . | . . . . . . . . Repair Stations . | . . . . . . . . Recycling Units 1 | . . . . . . 1 . Scanalyzers 2 | . . . . . 1 1 . Garrison Access . | . . . . . . . . Total Hacks 63 | . 18 . 2 . 26 16 1 Successful 30 | . 9 . 2 . 14 4 1 Failed 33 | . 9 . . . 12 12 . Catastrophic 5 | . 1 . . . . 4 . Database Lockouts . | . . . . . . . . Manual 21 | . 10 . 1 . 7 3 . Terminals 49 | . 18 . . . 18 13 . Fabricators . | . . . . . . . . Repair Stations . | . . . . . . . . Recycling Units 2 | . . . . . . 2 . Scanalyzers 9 | . . . . . 8 1 . Garrison Access . | . . . . . . . . Terminal Hacks 22 | . 9 . 2 . 6 4 1 Record 5 | . 2 . 1 . . 2 . Robot Analysis 5 | . 4 . . . 1 . . Prototype ID Bank 4 | . 1 . . . 3 . . Open Door 1 | . . . . . . . 1 Branch Access Points 4 | . 1 . . . 1 2 . Emergency Access Points 1 | . 1 . . . . . . Unreport Threat 1 | . . . . . 1 . . EX-Prototype ID Bank 1 | . . . 1 . . . . Fabricator Hacks . | . . . . . . . . Repair Station Hacks . | . . . . . . . . Recycling Unit Hacks . | . . . . . . . . Scanalyzer 8 | . . . . . 8 . . Insert Component 4 | . . . . . 4 . . Analyze 4 | . . . . . 4 . . Garrison Access Hacks . | . . . . . . . . Unauthorized Hacks . | . . . . . . . . Terminals . | . . . . . . . . Fabricators . | . . . . . . . . Repair Stations . | . . . . . . . . Recycling Units . | . . . . . . . . Scanalyzers . | . . . . . . . . Garrison Access . | . . . . . . . . Data Cores Recovered 1 | . 1 . . . . . . Used . | . . . . . . . . Hacking Detections 19 | . 5 . . . 7 7 . Full Trace Events . | . . . . . . . . Feedback Events . | . . . . . . . . Feedback Blocked . | . . . . . . . . Robot Schematics Acquired . | . . . . . . . . Robots Built . | . . . . . . . . Authchips . | . . . . . . . . Time . | . . . . . . . . Total Robot Build Rating . | . . . . . . . . Part Schematics Acquired 4 | . . . . . 4 . . Parts Built . | . . . . . . . . Authchips . | . . . . . . . . Time . | . . . . . . . . Total Part Build Rating . | . . . . . . . . Parts Repaired . | . . . . . . . . Time . | . . . . . . . . Parts Recycled . | . . . . . . . . Recycled Matter . | . . . . . . . . Retrieved Matter . | . . . . . . . . Retrieved Components . | . . . . . . . . Parts Scanalyzed 4 | . . . . . 4 . . Part Schematics Acquired 4 | . . . . . 4 . . Parts Damaged . | . . . . . . . . Bothacking | -11 -10 -10 -10 -9 -8 -7 -7 ------------ Run | Jun Mat Min Exi Min Mat Fac Low Used RIF Installer . | . . . . . . . . Robots Hacked . | . . . . . . . . Non-combat . | . . . . . . . . Combat . | . . . . . . . . Robot Hacks Applied . | . . . . . . . . Relay Couplers Released . | . . . . . . . . Fabnet Peak Effective % . | . . . . . . . . Robots Rewired . | . . . . . . . . Allies Hacked . | . . . . . . . . Hacks Repelled . | . . . . . . . . Allies | -11 -10 -10 -10 -9 -8 -7 -7 -------- Run | Jun Mat Min Exi Min Mat Fac Low Total Allies . | . . . . . . . . Largest Group . | . . . . . . . . Highest-Rated Group . | . . . . . . . . Highest-Rated Ally . | . . . . . . . . Total Orders . | . . . . . . . . Ally Attacks . | . . . . . . . . Total Damage . | . . . . . . . . Kills . | . . . . . . . . Allies Corrupted . | . . . . . . . . Allies Melted 1 | . . . . . . . 1 Intel | -11 -10 -10 -10 -9 -8 -7 -7 ------- Run | Jun Mat Min Exi Min Mat Fac Low Robot Analysis Total 4 | . 4 . . . . . . Derelict Logs Recovered 3 | . . 1 . 2 . . . Drone Launches . | . . . . . . . . Drone Recoveries . | . . . . . . . . Exploration | -11 -10 -10 -10 -9 -8 -7 -7 ------------- Run | Jun Mat Min Exi Min Mat Fac Low Turns Passed 7828 | 59 1262 1284 1144 949 1721 1283 126 Spaces Moved 3462 | 42 538 722 571 293 556 693 47 Core 21 | 12 8 . . . . 1 . Treads 2714 | . 352 722 571 293 556 173 47 Legs 208 | 30 178 . . . . . . Wheels 519 | . . . . . . 519 . Hover . | . . . . . . . . Flight . | . . . . . . . . Fastest Speed 50 | 50 120 160 160 320 240 115 240 Average Speed 190 | 100 149 160 197 320 240 158 240 Slowest Speed 1900 | 120 320 160 320 480 240 1900 240 Overloaded Moves . | . . . . . . . . Propulsion Burnouts . | . . . . . . . . Robots Hopped . | . . . . . . . . Cave-ins Triggered . | . . . . . . . . Exploration Rate (%) 49 | 3 82 99 71 69 48 14 8 Regions Visited 7 Branch Regions 4 Pre-discovered Areas 3 | . . . 1 2 . . . Known Exits Taken 2 | . 1 . . . . 1 . Unknown Exits Taken 5 | 1 . 1 1 1 1 . . Scrap Searched 4 | . . 1 . 3 . . . Spaces Dug . | . . . . . . . . Terrain Destroyed . | . . . . . . . . Melee . | . . . . . . . . Projectile . | . . . . . . . . AOE . | . . . . . . . . Terrain Rammed . | . . . . . . . . Walls Destroyed . | . . . . . . . . Machines Disabled . | . . . . . . . . Actions | -11 -10 -10 -10 -9 -8 -7 -7 --------- Run | Jun Mat Min Exi Min Mat Fac Low Total 4506 | 57 927 810 595 300 898 863 56 Wait 722 | 1 314 60 . . 264 83 . Move 3455 | 41 537 721 570 292 555 692 47 Hop . | . . . . . . . . Pick Up 78 | 7 17 5 11 1 15 20 2 Fast Attach 9 | 1 4 . . . . 4 . Attach 26 | 5 2 1 . 2 6 10 . Detach 3 | . . . . . . 3 . Swap 16 | 2 4 1 3 . 1 4 1 Drop 54 | . 12 . 11 . 7 22 2 Fire 59 | . 37 22 . . . . . Melee 84 | . . . . 5 50 25 4 Ram . | . . . . . . . . Kick . | . . . . . . . . Crush . | . . . . . . . . Escape Stasis . | . . . . . . . . Rewire . | . . . . . . . . Trap . | . . . . . . . . Miscellaneous . | . . . . . . . . Route ------- -11/Junkyard -10/Materials (discovered 3 exits: [*Mat x2] / *Min) -10/Mines (discovered 3 exits: [*Mat x2] / *Exi) -10/Exiles (discovered 2 exits: [*Min x2]) -9/Mines -8/Materials -7/Factory (discovered 2 exits: *Low x2) -7/Lower Caves History --------- Turn | Location | Event 20 | -11/Junkyard | Discovered new exit (range 15) 60 | -11/Junkyard | Entered Materials 167 | -10/Materials | Identified exit to Mines 278 | -10/Materials | Discovered new exit (range 4) 305 | -10/Materials | Build established: Mutant 1082 | -10/Materials | Discovered new exit (range 10) 1180 | -10/Materials | Core integrity fell below 50% 1322 | -10/Materials | Entered Mines 1329 | -10/Mines | Received a Rocket Launcher from a helpful Derelict 1456 | -10/Mines | Discovered new exit (range 9) 1642 | -10/Mines | Deemed a non-threat by the Exiles lab entrance 1807 | -10/Mines | Learned 2 Materials zone layouts 2140 | -10/Mines | Found a hidden stash of uninstalled traps 2196 | -10/Mines | Discovered new exit (range 6) 2380 | -10/Mines | A weapon hastily lodged in a ceiling crevice suddenly fell to the ground 2600 | -10/Mines | Discovered new exit (range 5) 2606 | -10/Mines | Entered Exiles 2637 | -10/Exiles | Discovered new exit (range 14) 2745 | -10/Exiles | Met 8R-AWN 2776 | -10/Exiles | Met EX-HEX 2860 | -10/Exiles | Met EX-DEC 2896 | -10/Exiles | Learned location of Zion (-7) 3000 | -10/Exiles | Discovered new exit (range 10) 3094 | -10/Exiles | Met EX-BIN 3128 | -10/Exiles | Aligned with FarCom system 3130 | -10/Exiles | Given EX-Vault access code 3170 | -10/Exiles | Opened EX-Vault 3209 | -10/Exiles | Warned to stay clear of 0b10 Research branches 3410 | -10/Exiles | Found Longsword +1 3416 | -10/Exiles | Found Firepult 3426 | -10/Exiles | Found XL Autogun Array 3750 | -10/Exiles | Stole three prototypes: Firepult, XL Autogun Array, Longsword +1 3750 | -10/Exiles | Entered Mines 3751 | -9/Mines | Assembled infested the area 3757 | -9/Mines | Met a Derelict bent on vengeance 3815 | -9/Mines | Learned location of Storage (-9) 3944 | -9/Mines | Core integrity fell below 20% 4654 | -9/Mines | Discovered new exit (range 15) 4699 | -9/Mines | Entered Materials 4699 | -8/Materials | Evolved 4 slots: Propulsion x2, Utility x2 5629 | -8/Materials | Discovered new exit (range 10) 6420 | -8/Materials | Entered Factory 6420 | -7/Factory | Evolved 2 slots: Power x1, Weapon x1 6422 | -7/Factory | FarCom data flow suspended 6720 | -7/Factory | Identified exit to Lower Caves 7703 | -7/Factory | Entered Lower Caves 7703 | -7/Lower Caves | Spotted 5D-OXW(f) 7703 | -7/Lower Caves | Spotted UZ-HN0(f) 7704 | -7/Lower Caves | Encountered a Master Thief 7704 | -7/Lower Caves | Encountered a Master Thief 7707 | -7/Lower Caves | XL Autogun Array stolen by Master Thief 7708 | -7/Lower Caves | Firepult stolen by Master Thief 7829 | -7/Lower Caves | Self-destructed Last Messages --------------- 07659_ Acquired Med. Treads. 07662_ Dropped Imp. Spread Laser. 07665_ Acquired Gauss Cannon. 07670_ ALERT: Rogue bot located, Programmers report to Factory Zone 2W. LOCATION=LOWER CAVES GOAL=ESCAPE 07704_ UZ-HN0(f): "Someone's put a hefty bounty on whatever we can steal from you!" 07707_ XL Autogun Array stolen. 07708_ Firepult stolen. 07713_ System corrupted: Matter fused (-6). 07776_ System corrupted: Heat flow error (+230). 07791_ Connecting with WAR.Sys... >>Open Door Sealed Heavy Doors opened. 07799_ Dropped Hvy. Ion Engine. 07800_ Dropped Reaction Control System. 07800_ Acquired Beamcaster. 07804_ Acquired Imp. Reaction Control System. 07807_ System corrupted: Energy discharge (-176). Map ----- +----------------------------------------------------+ | ?????????????????????????????????????????????????? | | ?????????????????????????????????????????????????? | | ?????????????????????????????????????????????????? | | ?????????????????????????????????????????????????? | | ?????????????????????????????????????????????????? | | ?????????????????????????????????????????????????? | | ?????????????????????????????????????????????????? | | ?????????????????????????????????????????????????? | | ?????????????????????????????????????????????????? | | ?????????????????????????????????????????????????? | | ?????????????????????????##?????????? #????????? | | ????????????????????????? ????????? #???? ? | | ????????????????????????? ??????? #??? | | ????????????????????????? #?????? #??? | | ????????????????????????? #??????? #??? | | ????????????????????????# #??????? #??# | | ????????????????????????# #???????? ???# ? | | ????????????????????????# #???????? ???# ? | | ????????????????????????# #????????? ???? ## | | ????????????????????????# #?????????# #????# ? | | ????????????????????????# #?????????# #?#### #? | | ????????????????????????# #?????????# ### ## #? | | ????????????????????????# #????????## ## ## ## | | ????????????????????????# #?###????# | | ????????????????????????# ### ###### | | ???????????????????????##@ ## | | ?????????????????####### #### | | ?????????????????#X ### ##########??### | | ????????????????###!## ##?????????????# | | ????????????????#[[* #### ##??????????????# | | ????????????????##! ##?# #???????????????### | | ?????????????????####??## ####?????????????????## | | ????????????????????????###?????????????????????## | | ?????????????????????????????????????????????????? | | ?????????????????????????????????????????????????? | | ?????????????????????????????????????????????????? | | ?????????????????????????????????????????????????? | | ?????????????????????????????????????????????????? | | ?????????????????????????????????????????????????? | | ?????????????????????????????????????????????????? | | ?????????????????????????????????????????????????? | | ?????????????????????????????????????????????????? | | ?????????????????????????????????????????????????? | | ?????????????????????????????????????????????????? | | ?????????????????????????????????????????????????? | | ?????????????????????????????????????????????????? | | ?????????????????????????????????????????????????? | | ?????????????????????????????????????????????????? | | ?????????????????????????????????????????????????? | | ?????????????????????????????????????????????????? | +----------------------------------------------------+ Best States ------------- Heat Dissipation 34 Energy Generation 31 Energy Capacity 520 Matter Stores 300 Matter Capacity 300 Sight Range 16 Terrain Scan Density 10 Armor Coverage 600 Weapon Shielding 33 Evasion (%) 55 Melee Accuracy 6 Recoil Reduction 4 Offensive Hacking 10 Item Schematics ----------------- Hvy. Armor Plating | -8/Materials | Scanalyzed Hcp. Storage Unit | -8/Materials | Scanalyzed Reaction Control System | -8/Materials | Scanalyzed Imp. Heat Sink | -8/Materials | Scanalyzed Robot Schematics ------------------ None Fabricated ------------ Nothing Alien Tech Used ----------------- None Achievements -------------- Ambidextrous Challenges ------------ None Game ------ Seed ClaymoresGaussRecalibrator Manual? 0 Play Time 00:35:35 Cumulative 52.0 hours Start 2023.10.13 @ 14:49:10 End 2023.10.13 @ 18:30:30 Sessions 5 Manual Loads 0 Difficulty Rogue Special Mode None Game No. 94 Rogue 91 Adventurer 3 Explorer 0 Win Type - Total 0 Types 0/0/0/0/0/0/0/0/0 Lore% 28 Gallery% 45 Achievement% 33 Wizard Run 0 Options --------- ASCII 0 Keyboard 0 Movement Mouse Keybinds 0 Fullscreen 2 Font 18/SmallcapsGlow Map View 76x50 Tactical HUD 1 Map Filters NONE Filters NONE Steam 1 RUN: 3dac359f-1dc5-43dd-9bec-ee572e271874